fUST/lending_fUST_20250911
["ID","MTS","AMOUNT","RATE_DAILY","PERIOD"]
[384800681,1757548245731,-157.0,0.00014246,2]
[384800682,1757548245740,-157.0,0.00014246,2]
[384800683,1757548245750,-500.0,0.00014246,2]
[384800685,1757548245759,-157.0,0.00014246,2]
[384800687,1757548245769,-157.0,0.00014246,2]
[384800688,1757548245779,-480.0,0.00014246,2]
[384800689,1757548245797,-480.0,0.00014246,2]
[384800690,1757548245806,-196.22507449,0.00014246,2]
[384800691,1757548245816,-157.0,0.00014246,2]
[384800692,1757548245825,-157.0,0.00014246,2]
[384800693,1757548245834,-157.0,0.00014246,2]
[384800694,1757548245843,-500.0,0.00014246,2]
[384800695,1757548245854,-157.0,0.00014246,2]
[384800696,1757548245870,-157.0,0.00014246,2]
[384800697,1757548245879,-500.0,0.00014246,2]
[384800698,1757548245889,-157.0,0.00014246,2]
[384800699,1757548245898,-480.0,0.00014246,2]
[384800700,1757548245908,-462.90633382,0.00014246,2]
[384800701,1757548245917,-480.0,0.00014246,2]
[384800702,1757548245927,-480.0,0.00014246,2]
[384800703,1757548245936,-1986.52110408,0.00014253,2]
[384800704,1757548245945,-621.0,0.00014302,2]
[384800706,1757548245955,-621.0,0.00014318,2]
[384800707,1757548245964,-621.0,0.00014348,2]
[384800708,1757548245973,-621.0,0.00014357,2]
[384800709,1757548245982,-8807.66083473,0.000144,2]
[384800710,1757548245991,-480.0,0.00014414,2]
[384800711,1757548246002,-480.0,0.00014414,2]
[384800712,1757548246011,-893.54,0.00014414,2]
[384800713,1757548246021,-2444.08,0.00014414,2]
[384800714,1757548246030,-379.28,0.00014414,2]
[384800715,1757548246040,-480.0,0.00014414,2]
[384800716,1757548246049,-480.0,0.00014415,2]
[384800717,1757548246058,-480.0,0.00014415,2]
[384800718,1757548246067,-480.0,0.00014415,2]
[384800719,1757548246077,-480.0,0.00014415,2]
[384800720,1757548246087,-480.0,0.00014415,2]
[384800721,1757548246096,-480.0,0.00014415,2]
[384800722,1757548246105,-480.0,0.00014415,2]
[384800723,1757548246114,-234.5957201,0.00014415,2]
[384800724,1757548246124,-480.0,0.00014415,2]
[384800725,1757548246134,-480.0,0.00014415,2]
[384800726,1757548246143,-458.74023675,0.00014416,2]
[384800727,1757548246152,-480.0,0.00014416,2]
[384800728,1757548246162,-480.0,0.00014416,2]
[384800729,1757548246171,-520.98723952,0.00014416,2]
[384800730,1757548246180,-480.0,0.00014416,2]
[384800731,1757548246189,-480.0,0.00014416,2]
[384800732,1757548246198,-480.0,0.00014416,2]
[384800733,1757548246208,-255.30339099,0.00014416,2]
[384800734,1757548246217,-341.53491915,0.00014416,2]
[384800735,1757548246226,-480.0,0.00014416,2]
[384800736,1757548246236,-480.0,0.00014416,2]
[384800737,1757548246245,-480.0,0.00014416,2]
[384800738,1757548246254,-467.77287036,0.00014416,2]
[384800739,1757548246276,-359.50100004,0.00013971,2]
[384800742,1757548246518,480.0,0.00013868,2]
[384800743,1757548246538,-120.49899996,0.00013971,2]
[384800744,1757548246547,-327.0,0.00014105,2]
[384800745,1757548246557,-480.0,0.00014245,2]
[384800746,1757548246567,-12.22712964,0.00014416,2]
[384800747,1757548246576,-480.0,0.00014416,2]
[384800748,1757548246585,-480.0,0.00014416,2]
[384800749,1757548246595,-480.0,0.00014416,2]
[384800750,1757548246604,-480.0,0.00014416,2]
[384800751,1757548246614,-303.49830244,0.00014416,2]
[384800752,1757548246623,-317.95576178,0.00014416,2]
[384800755,1757548246894,480.0,0.00013831,2]
[384800758,1757548246935,480.0,0.00013866,2]
[384800759,1757548268388,1360.0398011,0.00013824,2]
[384800760,1757548272482,480.0,0.00013868,2]
[384800761,1757548291293,1360.0398011,0.00013824,2]
[384800762,1757548314051,1360.0398011,0.00013824,2]
[384800763,1757548333674,480.0,0.00013868,2]
[384800764,1757548337131,1680.0398011,0.00013824,2]
[384800765,1757548359841,4028.0361934,0.00013824,2]
[384800766,1757548381808,4725.70770336,0.00013824,2]
[384800769,1757548403036,666.0,0.00013078,2]
[384800770,1757548403311,-295.72683126,0.00013963,2]
[384800771,1757548404880,300.0,0.00013823,2]
[384800772,1757548418429,480.0,0.00013868,2]
[384800773,1757548451313,300.0,0.00013823,2]
[384800774,1757548459711,300.0,0.00013823,2]
[384800775,1757548476173,300.0,0.00013823,2]
[384800776,1757548484607,300.0,0.00013823,2]
[384800777,1757548499765,300.0,0.00013823,2]
[384800779,1757548508345,760.0398011,0.00013823,2]
[384800780,1757548521044,312.56336374,0.00013868,2]
[384800781,1757548524236,2700.0,0.00013823,2]
[384800782,1757548548123,2700.0,0.00013823,2]
[384800783,1757548571321,300.0,0.00013822,2]
[384800784,1757548593825,300.0,0.00013822,2]
[384800785,1757548616184,300.0,0.00013822,2]
[384800788,1757548633042,279.78447,0.00013699,2]
[384800789,1757548634558,3141.27863925,0.00013413,6]
[384800790,1757548639887,1500.0,0.00013822,2]
[384800791,1757548662711,1500.0,0.00013822,2]
[384800792,1757548685230,1500.0,0.00013822,2]
[384800793,1757548708705,1500.0,0.00013822,2]
[384800794,1757548719673,10000.0,0.00012967,2]
[384800795,1757548730792,1642.78908694,0.00013413,6]
[384800796,1757548731250,1500.0,0.00013822,2]
[384800797,1757548754513,1500.0,0.00013822,2]
[384800800,1757548777990,1500.0,0.00013822,2]
[384800801,1757548800420,1500.0,0.00013822,2]
[384800803,1757548823570,3900.0,0.00013822,2]
[384800804,1757548846068,3900.0,0.00013822,2]
[384800805,1757548870292,300.0,0.00013821,2]
[384800806,1757548892487,300.0,0.00013821,2]
[384800810,1757548915520,300.0,0.00013821,2]
[384800811,1757548937954,1500.0,0.00013821,2]
[384800812,1757548951065,200.0,0.00027375,120]
[384800813,1757548961648,1500.0,0.00013821,2]
[384800814,1757548984439,5000.0,0.0001382,2]
[384800815,1757549000429,1334.14923705,0.00013868,2]
[384800816,1757549007816,5000.0,0.0001382,2]
[384800817,1757549032054,5000.0,0.0001382,2]
[384800818,1757549035579,2045.90283135,0.00013423,6]
[384800819,1757549055632,5000.0,0.0001382,2]
[384800820,1757549059381,160.35,0.00027397,120]
[384800821,1757549079325,5000.0,0.0001382,2]
[384800822,1757549102789,1500.0,0.00013821,2]
[384800823,1757549103316,-170.86530018,0.00013961,2]
[384800824,1757549125552,1200.0,0.0001382,2]
[384800825,1757549138314,1000.0,0.00012969,2]
[384800827,1757549149864,1200.0,0.0001382,2]
[384800828,1757549154520,355.88491016,0.00013548,2]
[384800829,1757549172365,1500.0,0.0001382,2]
[384800830,1757549195226,1500.0,0.0001382,2]
[384800831,1757549195451,1167.38058241,0.00013868,2]
[384800832,1757549220597,1500.0,0.0001382,2]
[384800833,1757549243027,1500.0,0.0001382,2]
[384800834,1757549266838,1500.0,0.0001382,2]
[384800835,1757549282707,300.0,0.00013959,2]
[384800836,1757549290398,1200.0,0.0001382,2]
[384800837,1757549298263,1200.0,0.0001382,2]
[384800838,1757549309661,645.43,0.00012329,2]
[384800839,1757549313835,1200.0,0.0001382,2]
[384800840,1757549320110,183.34,0.00012329,2]
[384800841,1757549322523,1200.0,0.0001382,2]
[384800842,1757549330580,152.78,0.00012329,2]
[384800843,1757549338343,1200.0,0.0001382,2]
[384800844,1757549341075,763.95,0.00012329,2]
[384800845,1757549346264,812.57990048,0.0001382,2]
[384800847,1757549362826,1500.0,0.0001382,2]
[384800851,1757549386203,1500.0,0.0001382,2]
[384800852,1757549388044,1021.4580096,0.00013867,2]
[384800853,1757549411477,300.0,0.00013818,2]
[384800854,1757549430521,167.488258,0.00013067,2]
[384800866,1757549432759,-300.0,0.00013958,2]
[384800868,1757549432769,-8.09929999,0.00013959,2]
[384800980,1757549433837,300.0,0.00013818,2]
[384801097,1757549448717,-291.90070001,0.00013959,2]
[384801098,1757549448726,-300.0,0.00013959,2]
[384801099,1757549448736,-300.0,0.00013959,2]
[384801100,1757549448745,-300.0,0.00013959,2]
[384801101,1757549448755,-1200.0,0.00013959,2]
[384801102,1757549448764,-941.18436573,0.0001396,5]
[384801103,1757549457461,1200.0,0.00013821,2]
[384801104,1757549479937,300.0,0.0001382,2]
[384801105,1757549504620,300.0,0.0001382,2]
[384801106,1757549528387,300.0,0.0001382,2]
[384801107,1757549551809,1500.0,0.0001382,2]
[384801108,1757549575556,1500.0,0.0001382,2]
[384801109,1757549578482,893.7757584,0.00013867,2]
[384801111,1757549585169,265.795246,0.00013699,2]
[384801112,1757549598653,300.0,0.00013819,2]
[384801113,1757549621819,300.0,0.00013819,2]
[384801114,1757549644959,300.0,0.00013819,2]
[384801115,1757549667310,1500.0,0.0001382,2]
[384801116,1757549691625,1500.0,0.0001382,2]
[384801117,1757549714651,2066.0,0.00013819,2]
[384801118,1757549739013,2066.0,0.00013819,2]
[384801119,1757549763996,2066.0,0.00013819,2]
[384801120,1757549773334,782.0537886,0.00013867,2]
[384801121,1757549786541,2066.0,0.00013819,2]
[384801124,1757549809046,2066.0,0.00013819,2]
[384801125,1757549832598,2066.0,0.00013819,2]
[384801126,1757549842368,1338.13498151,0.00013273,2]
[384801127,1757549844871,5347.18738613,0.00013273,2]
[384801128,1757549856257,3266.0,0.00013819,2]
[384801129,1757549880654,3266.0,0.00013819,2]
[384801130,1757549904238,300.0,0.00013818,2]
[384801131,1757549927355,300.0,0.00013818,2]
[384801132,1757549934353,699.80214968,0.00013273,2]
[384801133,1757549936464,2796.40939013,0.00013273,2]
[384801134,1757549949731,300.0,0.00013818,2]
[384801135,1757549963558,684.29706499,0.00013866,2]
[384801136,1757549973307,300.0,0.00013818,2]
[384801138,1757549997935,300.0,0.00013818,2]
[384801139,1757550020549,2066.0,0.00013818,2]
[384801140,1757550043828,2066.0,0.00013818,2]
[384801141,1757550066872,2066.0,0.00013818,2]
[384801142,1757550089637,2066.0,0.00013818,2]
[384801143,1757550112860,2066.0,0.00013818,2]
[384801144,1757550135736,2066.0,0.00013818,2]
[384801145,1757550146518,714.74049032,0.00013273,2]
[384801146,1757550148564,2856.10299933,0.00013273,2]
[384801147,1757550154259,598.75993191,0.00013865,2]
[384801148,1757550158281,3266.0,0.00013818,2]
[384801149,1757550180575,3266.0,0.00013818,2]
[384801150,1757550203032,300.0,0.00013817,2]
[384801151,1757550215429,800.0,0.00013828,2]
[384801152,1757550227482,300.0,0.00013817,2]
[384801153,1757550238425,869.50870332,0.00013273,2]
[384801154,1757550240669,3474.55677848,0.00013273,2]
[384801155,1757550249977,300.0,0.00013817,2]
[384801156,1757550272474,300.0,0.00013817,2]
[384801157,1757550296657,300.0,0.00013817,2]
[384801158,1757550320429,2066.0,0.00013817,2]
[384801159,1757550335556,800.0,0.00013844,2]
[384801160,1757550335610,800.0,0.00013916,2]
[384801161,1757550335665,800.0,0.00013906,2]
[384801162,1757550335720,800.0,0.00013846,2]
[384801163,1757550335777,800.0,0.00013762,2]
[384801164,1757550335822,800.0,0.00013858,2]
[384801165,1757550335877,800.0,0.00013913,2]
[384801166,1757550344490,2066.0,0.00013817,2]
[384801167,1757550344900,523.91494043,0.00013864,2]
[384801168,1757550355759,213.53094609,0.00013541,2]
[384801170,1757550367357,5259.2275484,0.00012962,2]
[384801171,1757550368051,2066.0,0.00013817,2]
[384801182,1757550390533,2066.0,0.00013817,2]
[384801183,1757550413106,2066.0,0.00013817,2]
[384801184,1757550416132,621.0,0.00013826,2]
[384801185,1757550436390,650.68024453,0.00013817,2]
[384801187,1757550452282,621.0,0.00013924,2]
[384801194,1757550517629,252.505483,0.00013699,2]
[384801215,1757550537004,458.42557285,0.00013864,2]
[384801435,1757550637898,-520.50392564,0.00013957,2]
[384801460,1757550641037,-679.49607436,0.00013957,2]
[384801461,1757550641046,-300.0,0.00013957,2]
[384801462,1757550641055,-300.0,0.00013957,2]
[384801463,1757550641064,-1200.0,0.00013957,2]
[384801464,1757550641073,-266.0,0.00013957,2]
[384801465,1757550641083,-160.0,0.00013958,2]
[384801466,1757550641092,-160.0,0.00013958,2]
[384801467,1757550641101,-160.0,0.00013958,2]
[384801468,1757550641110,-846.88337432,0.00013958,2]
[384801469,1757550641119,-77.25944,0.00013958,2]
[384801479,1757550642979,-453.61693315,0.00013958,2]
[384801480,1757550642988,-160.0,0.00013958,2]
[384801481,1757550642997,-417.15472785,0.00013958,2]
[384801482,1757550643007,-233.08191698,0.00013958,2]
[384801483,1757550643016,-105.61101908,0.00013958,2]
[384801524,1757550646020,-54.38898092,0.00013958,2]
[384801525,1757550646029,-160.0,0.00013958,2]
[384801526,1757550646039,-160.0,0.00013958,2]
[384801527,1757550646048,-67.00033952,0.00013958,2]
[384801528,1757550646059,-150.67117044,0.00013958,2]
[384801529,1757550646068,-196.0,0.0001396,2]
[384801530,1757550646077,-7111.39694177,0.0001396,5]
[384801531,1757550646086,-480.0,0.00013963,2]
[384801532,1757550646095,-1031.79,0.00013963,2]
[384801533,1757550646104,-88.9055926,0.00013963,2]
[384801534,1757550646115,-529.9044074,0.00013963,2]
[384801535,1757550646125,-480.0,0.00013963,2]
[384801536,1757550646135,-480.0,0.00013963,2]
[384801537,1757550646144,-480.0,0.00013963,2]
[384801538,1757550646153,-480.0,0.00013963,2]
[384801539,1757550646162,-374.07228791,0.00013963,2]
[384801543,1757550695434,800.0,0.00013912,2]
[384801544,1757550695471,800.0,0.00013934,2]
[384801546,1757550727516,401.12237627,0.00013864,2]
[384801548,1757550755548,800.0,0.00013917,2]
[384801551,1757550875334,800.0,0.00013721,2]
[384801552,1757550917829,518.51399654,0.00013863,2]
[384801553,1757550935600,800.0,0.00013806,2]
[384801556,1757550995434,800.0,0.00013696,2]
[384801558,1757551055604,800.0,0.00013767,2]
[384801559,1757551055656,800.0,0.00013712,2]
[384801560,1757551055921,800.0,0.00013922,2]
[384801561,1757551055969,493.25233541,0.00013884,2]
[384801564,1757551118073,300.0,0.00024,30]
[384801565,1757551137892,453.69974699,0.00013862,2]
[384801595,1757551487151,239.880208,0.00013699,2]
[384801597,1757551599694,396.98727859,0.0001386,2]
[384801599,1757551672402,2387.40827803,0.00013865,2]
[384801619,1757551832149,-263.9,0.00013958,2]
[384801620,1757551832159,-135.80554934,0.00013958,2]
[384801621,1757551832170,-296.47830625,0.00013958,2]
[384801707,1757551841760,-0.01736126,0.00013958,2]
[384801714,1757551843205,-767.69878315,0.00013958,2]
[384801715,1757551843214,-300.0,0.00013958,2]
[384801716,1757551843223,-1200.0,0.00013958,2]
[384801717,1757551843232,-300.0,0.00013958,2]
[384801718,1757551843241,-480.0,0.00013958,2]
[384801719,1757551843250,-220.71934885,0.00013959,2]
[384801720,1757551843259,-18507.84957472,0.00013959,2]
[384801721,1757551843269,-500.0,0.00013959,2]
[384801722,1757551843278,-500.0,0.00013959,2]
[384801723,1757551843287,-500.0,0.00013959,2]
[384801724,1757551843298,-500.0,0.00013959,2]
[384801725,1757551843307,-500.0,0.00013959,2]
[384801726,1757551843317,-500.0,0.00013959,2]
[384801727,1757551843326,-500.0,0.00013959,2]
[384801728,1757551843335,-542.61450799,0.00013959,2]
[384801729,1757551843344,-500.0,0.00013959,2]
[384801730,1757551843353,-500.0,0.00013959,2]
[384801731,1757551843362,-500.0,0.00013959,2]
[384801732,1757551843372,-500.0,0.00013959,2]
[384801733,1757551843381,-500.0,0.00013959,2]
[384801734,1757551843390,-500.0,0.00013959,2]
[384801735,1757551843399,-500.0,0.00013959,2]
[384801736,1757551843408,-500.0,0.00013959,2]
[384801737,1757551843417,-500.0,0.00013959,2]
[384801738,1757551843427,-500.0,0.00013959,2]
[384801739,1757551843436,-500.0,0.00013959,2]
[384801740,1757551843445,-500.0,0.00013959,2]
[384801741,1757551843454,-500.0,0.00013959,2]
[384801742,1757551843463,-500.0,0.00013959,2]
[384801743,1757551843472,-500.0,0.00013959,2]
[384801744,1757551843484,-266.18869291,0.00013959,2]
[384801745,1757551843495,-500.0,0.00013959,2]
[384801746,1757551843505,-500.0,0.00013959,2]
[384801747,1757551843515,-500.0,0.00013959,2]
[384801748,1757551843525,-500.0,0.00013959,2]
[384801749,1757551843534,-500.0,0.00013959,2]
[384801750,1757551843543,-500.0,0.00013959,2]
[384801751,1757551843552,-480.0,0.00013959,2]
[384801752,1757551843561,-722.2,0.00013959,2]
[384801753,1757551843570,-480.0,0.00013959,2]
[384801754,1757551843580,-7362.0,0.00013959,2]
[384801755,1757551843589,-480.0,0.00013959,2]
[384801756,1757551843598,-480.0,0.00013959,2]
[384801757,1757551843607,-480.0,0.00013959,2]
[384801758,1757551843616,-846.88337432,0.00013959,2]
[384801759,1757551843626,-530.87637315,0.00013959,2]
[384801760,1757551843635,-417.15472785,0.00013959,2]
[384801761,1757551843645,-233.08191698,0.00013959,2]
[384801763,1757551843654,-160.0,0.00013959,2]
[384801764,1757551843663,-160.0,0.00013959,2]
[384801765,1757551843672,-217.67150996,0.00013959,2]
[384801766,1757551843681,-466.79907713,0.0001396,2]
[384801767,1757551843691,-480.0,0.0001396,2]
[384801768,1757551843700,-480.0,0.0001396,2]
[384801769,1757551843709,-480.0,0.0001396,2]
[384801770,1757551843718,-480.0,0.0001396,2]
[384801771,1757551843728,-315.26906731,0.0001396,2]
[384801772,1757551843737,-480.0,0.0001396,2]
[384801773,1757551843746,-480.0,0.0001396,2]
[384801774,1757551843757,-480.0,0.0001396,2]
[384801775,1757551843766,-480.0,0.0001396,2]
[384801776,1757551843775,-480.0,0.0001396,2]
[384801777,1757551843784,-480.0,0.0001396,2]
[384801778,1757551843794,-480.0,0.0001396,2]
[384801779,1757551843803,-480.0,0.0001396,2]
[384801780,1757551843812,-480.0,0.0001396,2]
[384801781,1757551843821,-480.0,0.0001396,2]
[384801782,1757551843830,-480.0,0.0001396,2]
[384801783,1757551843839,-480.0,0.0001396,2]
[384801784,1757551843848,-480.0,0.0001396,2]
[384801785,1757551843857,-480.0,0.0001396,2]
[384801786,1757551843866,-480.0,0.0001396,2]
[384801787,1757551843875,-480.0,0.0001396,2]
[384801788,1757551843884,-480.0,0.0001396,2]
[384801789,1757551843893,-480.0,0.0001396,2]
[384801790,1757551843902,-480.0,0.0001396,2]
[384801791,1757551843911,-480.0,0.0001396,2]
[384801792,1757551843922,-480.0,0.0001396,2]
[384801793,1757551843933,-480.0,0.0001396,2]
[384801794,1757551843942,-480.0,0.0001396,2]
[384801795,1757551843952,-480.0,0.0001396,2]
[384801796,1757551843961,-1059.17,0.0001396,2]
[384801797,1757551843970,-152.002336,0.0001396,2]
[384801798,1757551843979,-480.0,0.0001396,2]
[384801799,1757551843988,-660.66,0.0001396,2]
[384801800,1757551843998,-151.0,0.0001396,2]
[384801801,1757551844007,-151.0,0.0001396,2]
[384801802,1757551844016,-221.47881208,0.0001396,2]
[384801803,1757551844025,-151.0,0.0001396,2]
[384801804,1757551844034,-151.0,0.0001396,2]
[384801805,1757551844044,-151.0,0.0001396,2]
[384801806,1757551844053,-151.0,0.0001396,2]
[384801807,1757551844062,-153.266762,0.0001396,2]
[384801808,1757551844071,-480.0,0.0001396,2]
[384801809,1757551844080,-480.0,0.0001396,2]
[384801810,1757551844090,-480.0,0.0001396,2]
[384801811,1757551844099,-151.0,0.0001396,2]
[384801812,1757551844108,-151.0,0.0001396,2]
[384801813,1757551844117,-239.150308,0.0001396,2]
[384801814,1757551844125,-151.0,0.0001396,2]
[384801815,1757551844135,-480.0,0.0001396,2]
[384801816,1757551844145,-436.19576782,0.0001396,2]
[384801817,1757551844154,-480.0,0.0001396,2]
[384801818,1757551844163,-151.0,0.0001396,2]
[384801819,1757551844176,-279.451001,0.0001396,2]
[384801820,1757551844189,-151.0,0.0001396,2]
[384801821,1757551844202,-672.74,0.0001396,2]
[384801822,1757551844215,-151.0,0.0001396,2]
[384801823,1757551844226,-151.0,0.0001396,2]
[384801824,1757551844236,-297.396534,0.0001396,2]
[384801825,1757551844249,-151.0,0.0001396,2]
[384801826,1757551844260,-188.93975815,0.0001396,2]
[384801827,1757551844272,-480.0,0.0001396,2]
[384801828,1757551844284,-151.0,0.0001396,2]
[384801829,1757551844297,-151.0,0.0001396,2]
[384801830,1757551844309,-203.785417,0.0001396,2]
[384801831,1757551844320,-185.354163,0.0001396,2]
[384801832,1757551844332,-464.26,0.0001396,2]
[384801833,1757551844346,-203.785417,0.0001396,2]
[384801834,1757551844357,-203.785417,0.0001396,2]
[384801835,1757551844368,-203.785417,0.0001396,2]
[384801836,1757551844379,-480.0,0.0001396,2]
[384801837,1757551844391,-151.0,0.0001396,2]
[384801838,1757551844402,-480.0,0.0001396,2]
[384801839,1757551844413,-480.0,0.0001396,2]
[384801840,1757551844426,-151.0,0.0001396,2]
[384801841,1757551844438,-151.0,0.0001396,2]
[384801842,1757551844450,-275.77834103,0.0001396,2]
[384801843,1757551844461,-151.0,0.0001396,2]
[384801844,1757551844471,-151.0,0.0001396,2]
[384801845,1757551844482,-151.0,0.0001396,2]
[384801846,1757551844493,-480.0,0.0001396,2]
[384801847,1757551844504,-480.0,0.0001396,2]
[384801848,1757551844515,-480.0,0.0001396,2]
[384801849,1757551844527,-151.0,0.0001396,2]
[384801850,1757551844539,-480.0,0.0001396,2]
[384801851,1757551844550,-151.0,0.0001396,2]
[384801852,1757551844562,-151.0,0.0001396,2]
[384801853,1757551844575,-480.0,0.0001396,2]
[384801854,1757551844587,-480.0,0.00013961,2]
[384801855,1757551844600,-480.0,0.00013961,2]
[384801856,1757551844611,-480.0,0.00013961,2]
[384801857,1757551844621,-559.5,0.00013961,2]
[384801858,1757551844632,-480.0,0.00013961,2]
[384801859,1757551844642,-480.0,0.00013961,2]
[384801860,1757551844653,-480.0,0.00013961,2]
[384801861,1757551844665,-480.0,0.00013961,2]
[384801862,1757551844678,-480.0,0.00013961,2]
[384801863,1757551844690,-480.0,0.00013961,2]
[384801864,1757551844701,-480.0,0.00013961,2]
[384801865,1757551844711,-500.0,0.00013961,2]
[384801866,1757551844722,-480.0,0.00013961,2]
[384801867,1757551844733,-480.0,0.00013961,2]
[384801868,1757551844744,-170.726564,0.00013961,2]
[384801869,1757551844757,-170.726564,0.00013961,2]
[384801870,1757551844767,-480.0,0.00013961,2]
[384801871,1757551844778,-170.726564,0.00013961,2]
[384801872,1757551844788,-235.46784,0.00013961,2]
[384801873,1757551844798,-151.0,0.00013961,2]
[384801874,1757551844808,-170.726564,0.00013961,2]
[384801875,1757551844819,-480.0,0.00013961,2]
[384801876,1757551844829,-480.0,0.00013961,2]
[384801877,1757551844840,-480.0,0.00013961,2]
[384801878,1757551844851,-480.0,0.00013961,2]
[384801879,1757551844863,-151.0,0.00013961,2]
[384801880,1757551844875,-222.732383,0.00013961,2]
[384801881,1757551844886,-480.0,0.00013961,2]
[384801882,1757551844899,-480.0,0.00013961,2]
[384801883,1757551844910,-480.0,0.00013961,2]
[384801884,1757551844921,-480.0,0.00013961,2]
[384801885,1757551844935,-151.0,0.00013961,2]
[384801886,1757551844945,-480.0,0.00013961,2]
[384801887,1757551844956,-151.0,0.00013961,2]
[384801888,1757551844966,-480.0,0.00013961,2]
[384801889,1757551844977,-480.0,0.00013961,2]
[384801890,1757551844988,-480.0,0.00013961,2]
[384801891,1757551844998,-480.0,0.00013961,2]
[384801892,1757551845009,-480.0,0.00013961,2]
[384801893,1757551845019,-480.0,0.00013961,2]
[384801894,1757551845030,-300.0,0.00013961,2]
[384801895,1757551845041,-480.0,0.00013961,2]
[384801896,1757551845052,-151.0,0.00013961,2]
[384801897,1757551845063,-480.0,0.00013961,2]
[384801898,1757551845074,-480.0,0.00013961,2]
[384801899,1757551845085,-480.0,0.00013961,2]
[384801900,1757551845096,-326.28506273,0.00013961,2]
[384801901,1757551845107,-480.0,0.00013961,2]
[384801902,1757551845118,-480.0,0.00013961,2]
[384801903,1757551845129,-480.0,0.00013961,2]
[384801904,1757551845139,-480.0,0.00013961,2]
[384801905,1757551845151,-675.904462,0.00013961,2]
[384801906,1757551845162,-675.904462,0.00013961,2]
[384801907,1757551845173,-675.904462,0.00013961,2]
[384801908,1757551845184,-675.904462,0.00013961,2]
[384801909,1757551845195,-151.0,0.00013961,2]
[384801910,1757551845206,-151.0,0.00013961,2]
[384801911,1757551845217,-675.904462,0.00013961,2]
[384801912,1757551845227,-151.0,0.00013961,2]
[384801913,1757551845239,-675.904462,0.00013961,2]
[384801914,1757551845250,-151.0,0.00013961,2]
[384801915,1757551845261,-675.904462,0.00013961,2]
[384801916,1757551845271,-190.769288,0.00013961,2]
[384801917,1757551845282,-675.904462,0.00013961,2]
[384801918,1757551845293,-151.0,0.00013961,2]
[384801919,1757551845304,-178.238672,0.00013961,2]
[384801920,1757551845315,-151.088786,0.00013961,2]
[384801921,1757551845326,-151.0,0.00013961,2]
[384801922,1757551845337,-480.0,0.00013961,2]
[384801923,1757551845348,-267.899332,0.00013961,2]
[384801924,1757551845359,-480.0,0.00013961,2]
[384801925,1757551845370,-268.76781147,0.00013961,2]
[384801926,1757551845381,-151.0,0.00013961,2]
[384801927,1757551845392,-169.916764,0.00013961,2]
[384801928,1757551845403,-480.0,0.00013961,2]
[384801929,1757551845547,-151.0,0.00013961,2]
[384801930,1757551845557,-152.373557,0.00013961,2]
[384801931,1757551845566,-480.0,0.00013961,2]
[384801932,1757551845575,-480.0,0.00013961,2]